fUST/lending_fUST_20260416
["ID","MTS","AMOUNT","RATE_DAILY","PERIOD"]
[420615774,1776347451769,-500.0,8.767e-05,2]
[420615775,1776347451779,-500.0,8.767e-05,2]
[420615776,1776347451788,-500.0,8.767e-05,2]
[420615777,1776347451797,-500.0,8.767e-05,2]
[420615778,1776347451808,-500.0,8.767e-05,2]
[420615779,1776347451817,-805.38,8.767e-05,2]
[420615780,1776347451826,-583.12509444,8.767e-05,2]
[420615781,1776347451836,-500.0,8.767e-05,2]
[420615782,1776347451845,-1051.46,8.767e-05,2]
[420615783,1776347451855,-617.69,8.767e-05,2]
[420615784,1776347451864,-517.87018901,8.767e-05,2]
[420615785,1776347451873,-500.0,8.767e-05,2]
[420615786,1776347451882,-500.0,8.767e-05,2]
[420615787,1776347451891,-500.0,8.767e-05,2]
[420615788,1776347451901,-500.0,8.767e-05,2]
[420615789,1776347451910,-513.22207757,8.767e-05,2]
[420615790,1776347451919,-500.0,8.767e-05,2]
[420615791,1776347451928,-500.0,8.767e-05,2]
[420615792,1776347451937,-3113.23,8.767e-05,2]
[420615793,1776347451946,-4117.36,8.767e-05,2]
[420615794,1776347451955,-511.87210884,8.767e-05,2]
[420615795,1776347451965,-500.0,8.767e-05,2]
[420615796,1776347451974,-500.0,8.767e-05,2]
[420615797,1776347451983,-521.89306771,8.767e-05,2]
[420615798,1776347451993,-392.23080999,8.767e-05,2]
[420615799,1776347452006,-1481.67,8.767e-05,2]
[420615800,1776347452015,-1042.93,8.767e-05,2]
[420615801,1776347452024,-500.0,8.767e-05,2]
[420615802,1776347452033,-500.0,8.767e-05,2]
[420615803,1776347452042,-3856.94,8.767e-05,2]
[420615804,1776347452052,-500.0,8.767e-05,2]
[420615805,1776347452062,-1720.25,8.767e-05,2]
[420615806,1776347452071,-2155.85,8.767e-05,2]
[420615807,1776347452080,-500.0,8.767e-05,2]
[420615808,1776347452090,-500.0,8.767e-05,2]
[420615809,1776347452100,-577.9,8.767e-05,2]
[420615810,1776347452110,-1662.32,8.767e-05,2]
[420615811,1776347452119,-500.0,8.767e-05,2]
[420615812,1776347452129,-500.0,8.767e-05,2]
[420615813,1776347452138,-535.83932677,8.767e-05,2]
[420615814,1776347452147,-500.0,8.767e-05,2]
[420615815,1776347452157,-500.0,8.767e-05,2]
[420615816,1776347452167,-1832.25,8.767e-05,2]
[420615817,1776347452177,-500.0,8.767e-05,2]
[420615818,1776347452187,-500.0,8.767e-05,2]
[420615819,1776347452197,-499.77631366,8.767e-05,2]
[420615820,1776347452206,-500.0,8.767e-05,2]
[420615821,1776347452216,-580.78966131,8.767e-05,2]
[420615822,1776347452226,-500.0,8.767e-05,2]
[420615823,1776347452236,-500.0,8.767e-05,2]
[420615824,1776347452247,-315.4804373,8.767e-05,2]
[420615825,1776347452257,-500.0,8.767e-05,2]
[420615826,1776347452267,-500.0,8.767e-05,2]
[420615827,1776347452277,-831.28,8.767e-05,2]
[420615828,1776347452288,-500.0,8.767e-05,2]
[420615829,1776347452297,-500.0,8.767e-05,2]
[420615830,1776347452308,-2910.83,8.767e-05,2]
[420615831,1776347452317,-500.0,8.767e-05,2]
[420615832,1776347452327,-500.0,8.767e-05,2]
[420615833,1776347452336,-500.0,8.767e-05,2]
[420615834,1776347452346,-500.0,8.767e-05,2]
[420615835,1776347452357,-346.22935695,8.767e-05,2]
[420615836,1776347452366,-688.35,8.767e-05,2]
[420615837,1776347452376,-881.83,8.767e-05,2]
[420615838,1776347452386,-500.0,8.767e-05,2]
[420615839,1776347452396,-500.0,8.767e-05,2]
[420615840,1776347452406,-1033.21,8.767e-05,2]
[420615841,1776347452415,-500.0,8.767e-05,2]
[420615842,1776347452426,-500.0,8.767e-05,2]
[420615843,1776347452436,-500.0,8.767e-05,2]
[420615844,1776347452446,-500.0,8.767e-05,2]
[420615845,1776347452455,-500.0,8.767e-05,2]
[420615846,1776347452466,-603.22,8.767e-05,2]
[420615847,1776347452475,-509.78,8.767e-05,2]
[420615848,1776347452486,-500.0,8.767e-05,2]
[420615849,1776347452496,-1867.39,8.767e-05,2]
[420615850,1776347452507,-500.0,8.767e-05,2]
[420615851,1776347452516,-500.0,8.767e-05,2]
[420615852,1776347452526,-500.0,8.767e-05,2]
[420615853,1776347452536,-500.0,8.767e-05,2]
[420615854,1776347452547,-500.0,8.767e-05,2]
[420615855,1776347452558,-500.0,8.767e-05,2]
[420615856,1776347452569,-500.0,8.767e-05,2]
[420615857,1776347452579,-500.0,8.767e-05,2]
[420615858,1776347452589,-527.49322521,8.767e-05,2]
[420615859,1776347452599,-500.0,8.767e-05,2]
[420615860,1776347452608,-500.0,8.767e-05,2]
[420615861,1776347452618,-500.0,8.767e-05,2]
[420615862,1776347452628,-500.0,8.767e-05,2]
[420615863,1776347452638,-500.0,8.767e-05,2]
[420615864,1776347452648,-500.0,8.767e-05,2]
[420615865,1776347452658,-656.19,8.767e-05,2]
[420615866,1776347452670,-500.0,8.767e-05,2]
[420615867,1776347452680,-500.0,8.767e-05,2]
[420615868,1776347452690,-1544.576064,8.767e-05,2]
[420615869,1776347452700,-500.0,8.767e-05,2]
[420615870,1776347452710,-837.05,8.767e-05,2]
[420615871,1776347452719,-1480.64,8.767e-05,2]
[420615872,1776347452729,-705.26,8.767e-05,2]
[420615873,1776347452738,-500.0,8.767e-05,2]
[420615874,1776347452748,-500.0,8.767e-05,2]
[420615875,1776347452757,-822.26,8.767e-05,2]
[420615876,1776347452767,-2699.92,8.767e-05,2]
[420615877,1776347452777,-500.0,8.767e-05,2]
[420615878,1776347452787,-165.281425,8.767e-05,2]
[420615879,1776347452796,-166.95972338,8.767e-05,2]
[420615880,1776347452806,-500.0,8.767e-05,2]
[420615881,1776347452815,-178.89107821,8.767e-05,2]
[420615882,1776347452825,-615.88,8.767e-05,2]
[420615883,1776347452834,-918.3,8.767e-05,2]
[420615884,1776347452844,-2010.87,8.767e-05,2]
[420615885,1776347452853,-2645.38,8.767e-05,2]
[420615886,1776347452863,-500.0,8.767e-05,2]
[420615887,1776347452872,-500.0,8.767e-05,2]
[420615888,1776347452882,-500.0,8.767e-05,2]
[420615889,1776347452892,-500.0,8.767e-05,2]
[420615890,1776347452902,-500.0,8.767e-05,2]
[420615891,1776347452912,-500.0,8.767e-05,2]
[420615892,1776347452921,-1162.62,8.767e-05,2]
[420615893,1776347452931,-500.0,8.767e-05,2]
[420615894,1776347452940,-500.0,8.767e-05,2]
[420615895,1776347452950,-500.0,8.767e-05,2]
[420615896,1776347452960,-500.0,8.767e-05,2]
[420615897,1776347452969,-500.0,8.767e-05,2]
[420615898,1776347452979,-1196.0,8.767e-05,2]
[420615899,1776347452989,-1007.96,8.767e-05,2]
[420615900,1776347453000,-500.0,8.767e-05,2]
[420615901,1776347453011,-500.0,8.767e-05,2]
[420615902,1776347453021,-500.0,8.767e-05,2]
[420615903,1776347453030,-500.0,8.767e-05,2]
[420615904,1776347453041,-500.0,8.767e-05,2]
[420615905,1776347453051,-583.70196717,8.767e-05,2]
[420615906,1776347453061,-500.0,8.767e-05,2]
[420615907,1776347453071,-1505.24,8.767e-05,2]
[420615908,1776347453081,-194.026213,8.767e-05,2]
[420615909,1776347453091,-2140.91,8.767e-05,2]
[420615910,1776347453100,-500.0,8.767e-05,2]
[420615911,1776347453110,-500.0,8.767e-05,2]
[420615912,1776347453119,-500.0,8.767e-05,2]
[420615913,1776347453128,-500.0,8.767e-05,2]
[420615914,1776347453138,-500.0,8.767e-05,2]
[420615915,1776347453147,-2489.33,8.767e-05,2]
[420615916,1776347453156,-500.0,8.767e-05,2]
[420615917,1776347453166,-3728.42,8.767e-05,2]
[420615918,1776347453175,-784.3,8.767e-05,2]
[420615919,1776347453185,-500.0,8.767e-05,2]
[420615920,1776347453195,-4366.97,8.767e-05,2]
[420615921,1776347453204,-1672.76,8.767e-05,2]
[420615922,1776347453214,-500.0,8.767e-05,2]
[420615923,1776347453223,-500.0,8.767e-05,2]
[420615924,1776347453232,-2208.62,8.767e-05,2]
[420615925,1776347453242,-500.0,8.767e-05,2]
[420615926,1776347453251,-2586.11,8.767e-05,2]
[420615927,1776347453260,-500.0,8.767e-05,2]
[420615928,1776347453272,-550.87,8.767e-05,2]
[420615929,1776347453281,-500.0,8.767e-05,2]
[420615930,1776347453290,-500.0,8.767e-05,2]
[420615931,1776347453299,-554.7901,8.767e-05,2]
[420615932,1776347453310,-1909.16,8.767e-05,2]
[420615933,1776347453319,-1990.16,8.767e-05,2]
[420615934,1776347453328,-500.0,8.767e-05,2]
[420615935,1776347453338,-1773.48,8.767e-05,2]
[420615936,1776347453347,-500.0,8.767e-05,2]
[420615937,1776347453357,-500.0,8.767e-05,2]
[420615938,1776347453366,-380.60358979,8.767e-05,2]
[420615939,1776347453376,-2744.3,8.767e-05,2]
[420615940,1776347453385,-1324.63,8.767e-05,2]
[420615941,1776347453394,-1629.3,8.767e-05,2]
[420615942,1776347453532,-6728.9,8.767e-05,2]
[420615943,1776347453543,-500.0,8.767e-05,2]
[420615944,1776347453553,-540.90004674,8.767e-05,2]
[420615945,1776347453563,-500.0,8.767e-05,2]
[420615946,1776347453573,-500.0,8.767e-05,2]
[420615947,1776347453583,-3011.81,8.767e-05,2]
[420615948,1776347453593,-517.33105998,8.767e-05,2]
[420615949,1776347453602,-6483.02,8.767e-05,2]
[420615950,1776347453611,-505.29878603,8.767e-05,2]
[420615951,1776347453620,-8143.34,8.767e-05,2]
[420615952,1776347453629,-500.0,8.767e-05,2]
[420615953,1776347453638,-506.53868806,8.767e-05,2]
[420615954,1776347453647,-1204.32,8.767e-05,2]
[420615955,1776347453657,-3004.44,8.767e-05,2]
[420615956,1776347453666,-1897.3,8.767e-05,2]
[420615957,1776347453675,-1433.85,8.767e-05,2]
[420615958,1776347453684,-512.99511158,8.767e-05,2]
[420615959,1776347453693,-500.0,8.767e-05,2]
[420615960,1776347453703,-5719.79,8.767e-05,2]
[420615961,1776347453712,-500.0,8.767e-05,2]
[420615962,1776347453721,-325.38770871,8.767e-05,2]
[420615963,1776347453730,-500.0,8.767e-05,2]
[420615964,1776347453739,-503.48634296,8.767e-05,2]
[420615965,1776347453748,-500.0,8.767e-05,2]
[420615966,1776347453758,-1953.06,8.767e-05,2]
[420615967,1776347453766,-500.0,8.767e-05,2]
[420615968,1776347453776,-1434.8,8.767e-05,2]
[420615969,1776347453785,-500.0,8.767e-05,2]
[420615970,1776347453795,-1718.57,8.767e-05,2]
[420615971,1776347453805,-507.65149841,8.767e-05,2]
[420615972,1776347453815,-500.0,8.767e-05,2]
[420615973,1776347453824,-500.0,8.767e-05,2]
[420615974,1776347453833,-500.0,8.767e-05,2]
[420615975,1776347453842,-500.0,8.767e-05,2]
[420615976,1776347453852,-2610.98,8.767e-05,2]
[420615977,1776347453861,-500.0,8.767e-05,2]
[420615978,1776347453871,-500.0,8.767e-05,2]
[420615979,1776347453880,-500.0,8.767e-05,2]
[420615980,1776347453889,-500.0,8.767e-05,2]
[420615981,1776347453899,-1095.12,8.767e-05,2]
[420615982,1776347453908,-565.01,8.767e-05,2]
[420615983,1776347453917,-4389.23,8.767e-05,2]
[420615984,1776347453927,-500.0,8.767e-05,2]
[420615985,1776347453936,-2304.72,8.767e-05,2]
[420615986,1776347453945,-500.0,8.767e-05,2]
[420615987,1776347453955,-500.0,8.767e-05,2]
[420615988,1776347453964,-530.36,8.767e-05,2]
[420615989,1776347453974,-500.0,8.767e-05,2]
[420615990,1776347453983,-500.0,8.767e-05,2]
[420615991,1776347453993,-500.0,8.767e-05,2]
[420615992,1776347454002,-625.89365568,8.767e-05,2]
[420615993,1776347454012,-583.46,8.767e-05,2]
[420615994,1776347454021,-500.0,8.767e-05,2]
[420615995,1776347454031,-7351.49,8.767e-05,2]
[420615996,1776347454041,-500.0,8.767e-05,2]
[420615997,1776347454050,-500.0,8.767e-05,2]
[420615998,1776347454061,-972.65,8.767e-05,2]
[420615999,1776347454070,-720.2,8.767e-05,2]
[420616000,1776347454079,-500.0,8.767e-05,2]
[420616001,1776347454088,-1125.29,8.767e-05,2]
[420616002,1776347454097,-3373.04,8.767e-05,2]
[420616003,1776347454106,-500.0,8.767e-05,2]
[420616004,1776347454115,-1840.97,8.767e-05,2]
[420616005,1776347454125,-500.0,8.767e-05,2]
[420616006,1776347454135,-1150.52,8.767e-05,2]
[420616007,1776347454144,-656.5,8.767e-05,2]
[420616008,1776347454153,-500.0,8.767e-05,2]
[420616009,1776347454163,-500.0,8.767e-05,2]
[420616010,1776347454172,-961.2,8.767e-05,2]
[420616011,1776347454181,-1605.32,8.767e-05,2]
[420616012,1776347454191,-3525.06,8.767e-05,2]
[420616013,1776347454200,-500.0,8.767e-05,2]
[420616014,1776347454209,-500.0,8.767e-05,2]
[420616015,1776347454219,-32291.38,8.767e-05,2]
[420616016,1776347454227,-887.71,8.767e-05,2]
[420616017,1776347454236,-5369.93,8.767e-05,2]
[420616018,1776347454245,-574.18,8.767e-05,2]
[420616019,1776347454254,-500.0,8.767e-05,2]
[420616020,1776347454264,-1115.51,8.767e-05,2]
[420616021,1776347454273,-500.0,8.767e-05,2]
[420616022,1776347454282,-3059.1,8.767e-05,2]
[420616023,1776347454292,-500.0,8.767e-05,2]
[420616024,1776347454302,-500.0,8.767e-05,2]
[420616025,1776347454312,-576.3,8.767e-05,2]
[420616026,1776347454321,-929.78,8.767e-05,2]
[420616027,1776347454330,-506.68436658,8.767e-05,2]
[420616028,1776347454339,-19594.06,8.767e-05,2]
[420616029,1776347454348,-500.0,8.767e-05,2]
[420616030,1776347454358,-665.79,8.767e-05,2]
[420616031,1776347454368,-23951.21,8.767e-05,2]
[420616032,1776347454378,-500.0,8.767e-05,2]
[420616033,1776347454387,-500.0,8.767e-05,2]
[420616034,1776347454396,-537.41,8.767e-05,2]
[420616035,1776347454406,-2518.79,8.767e-05,2]
[420616036,1776347454416,-3037.06,8.767e-05,2]
[420616037,1776347454426,-516.1400296,8.767e-05,2]
[420616038,1776347454435,-8442.91,8.767e-05,2]
[420616039,1776347454445,-500.0,8.767e-05,2]
[420616040,1776347454454,-500.0,8.767e-05,2]
[420616041,1776347454465,-607.67575998,8.767e-05,2]
[420616042,1776347454475,-2385.34,8.767e-05,2]
[420616043,1776347454484,-500.0,8.767e-05,2]
[420616044,1776347454494,-500.0,8.767e-05,2]
[420616045,1776347454504,-700.32,8.767e-05,2]
[420616046,1776347454513,-500.0,8.767e-05,2]
[420616047,1776347454522,-500.0,8.767e-05,2]
[420616048,1776347454532,-2700.85,8.767e-05,2]
[420616049,1776347454541,-500.0,8.767e-05,2]
[420616050,1776347454551,-500.0,8.767e-05,2]
[420616051,1776347454561,-7790.02,8.767e-05,2]
[420616052,1776347454571,-500.0,8.767e-05,2]
[420616053,1776347454580,-500.0,8.767e-05,2]
[420616054,1776347454589,-500.0,8.767e-05,2]
[420616055,1776347454599,-504.27370687,8.767e-05,2]
[420616056,1776347454608,-500.0,8.767e-05,2]
[420616057,1776347454618,-500.0,8.767e-05,2]
[420616058,1776347454627,-1453.34,8.767e-05,2]
[420616059,1776347454636,-500.0,8.767e-05,2]
[420616060,1776347454645,-500.0,8.767e-05,2]
[420616061,1776347454655,-500.0,8.767e-05,2]
[420616062,1776347454664,-588.93,8.767e-05,2]
[420616063,1776347454673,-500.0,8.767e-05,2]
[420616064,1776347454682,-10059.84900206,8.771e-05,2]
[420616065,1776347454691,-1152.0,8.783e-05,2]
[420616066,1776347454700,-7303.60276182,8.785e-05,2]
[420616067,1776347454710,-1926.54153117,8.813e-05,2]
[420616068,1776347454719,-578.20924308,8.903e-05,2]
[420616069,1776347454728,-2312.83697232,8.903e-05,2]
[420616070,1776347454737,-202.1,8.986e-05,2]
[420616071,1776347454747,-400.0,8.99e-05,2]
[420616072,1776347454756,-9359.54626913,9e-05,2]
[420616073,1776347454766,-5000.0,9e-05,2]
[420616074,1776347454775,-5000.0,9e-05,2]
[420616075,1776347454784,-5000.0,9e-05,2]
[420616076,1776347454794,-170.0,9e-05,2]
[420616077,1776347454803,-170.0,9e-05,2]
[420616078,1776347454815,-175.75119369,9e-05,2]
[420616079,1776347454824,-785.1512,9.041e-05,2]
[420616080,1776347454834,-500.0,9.041e-05,2]
[420616081,1776347454844,-500.0,9.041e-05,2]
[420616082,1776347454853,-500.0,9.041e-05,2]
[420616083,1776347454863,-500.0,9.041e-05,2]
[420616084,1776347454872,-500.0,9.041e-05,2]
[420616085,1776347454882,-500.0,9.041e-05,2]
[420616086,1776347454891,-500.0,9.041e-05,2]
[420616087,1776347454901,-500.0,9.041e-05,2]
[420616088,1776347454910,-500.0,9.041e-05,2]
[420616089,1776347454920,-500.0,9.041e-05,2]
[420616090,1776347454929,-536.76418447,9.041e-05,2]
[420616091,1776347454939,-500.0,9.041e-05,2]
[420616092,1776347454948,-805.38,9.041e-05,2]
[420616093,1776347454958,-500.0,9.041e-05,2]
[420616094,1776347454968,-1051.46,9.041e-05,2]
[420616095,1776347454977,-617.69,9.041e-05,2]
[420616096,1776347454987,-500.0,9.041e-05,2]
[420616097,1776347454996,-500.0,9.041e-05,2]
[420616098,1776347455006,-171.27012818,9.041e-05,2]
[420616099,1776347455015,-500.0,9.041e-05,2]
[420616100,1776347455025,-170.69023172,9.041e-05,2]
[420616101,1776347455034,-221.59779694,9.041e-05,2]
[420616102,1776347455044,-3113.23,9.041e-05,2]
[420616103,1776347455054,-4117.36,9.041e-05,2]
[420616104,1776347455066,-500.0,9.041e-05,2]
[420616105,1776347455076,-501.56829173,9.041e-05,2]
[420616106,1776347455085,-1481.67,9.041e-05,2]
[420616107,1776347455095,-1042.93,9.041e-05,2]
[420616108,1776347455104,-500.0,9.041e-05,2]
[420616109,1776347455113,-500.0,9.041e-05,2]
[420616110,1776347455123,-3856.94,9.041e-05,2]
[420616111,1776347455132,-227.20710756,9.041e-05,2]
[420616112,1776347455141,-1720.25,9.041e-05,2]
[420616113,1776347455151,-2155.85,9.041e-05,2]
[420616114,1776347455160,-508.99288298,9.041e-05,2]
[420616115,1776347455171,-500.0,9.041e-05,2]
[420616116,1776347455181,-577.9,9.041e-05,2]
[420616117,1776347455191,-1662.32,9.041e-05,2]
[420616118,1776347455200,-238.25424904,9.041e-05,2]
[420616119,1776347455209,-500.0,9.041e-05,2]
[420616120,1776347455219,-365.329758,9.041e-05,2]
[420616121,1776347455227,-500.0,9.041e-05,2]
[420616122,1776347455236,-1832.25,9.041e-05,2]
[420616123,1776347455246,-500.0,9.041e-05,2]
[420616124,1776347455255,-500.0,9.041e-05,2]
[420616125,1776347455265,-500.0,9.041e-05,2]
[420616126,1776347455275,-155.98824029,9.041e-05,2]
[420616127,1776347455285,-500.0,9.041e-05,2]
[420616128,1776347455295,-500.0,9.041e-05,2]
[420616129,1776347455304,-500.0,9.041e-05,2]
[420616130,1776347455317,-831.28,9.041e-05,2]
[420616131,1776347455326,-500.0,9.041e-05,2]
[420616132,1776347455335,-500.0,9.041e-05,2]
[420616133,1776347455344,-2910.83,9.041e-05,2]
[420616134,1776347455353,-500.0,9.041e-05,2]
[420616135,1776347455362,-513.62093261,9.041e-05,2]
[420616136,1776347455372,-500.0,9.041e-05,2]
[420616137,1776347455382,-500.0,9.041e-05,2]
[420616138,1776347455391,-688.35,9.041e-05,2]
[420616139,1776347455400,-881.83,9.041e-05,2]
[420616140,1776347455410,-500.0,9.041e-05,2]
[420616141,1776347455419,-500.0,9.041e-05,2]
[420616142,1776347455429,-1033.21,9.041e-05,2]
[420616143,1776347455438,-500.0,9.041e-05,2]
[420616144,1776347455455,-500.0,9.041e-05,2]
[420616145,1776347455466,-500.0,9.041e-05,2]
[420616146,1776347455476,-500.0,9.041e-05,2]
[420616147,1776347455485,-614.95432668,9.041e-05,2]
[420616148,1776347455494,-603.22,9.041e-05,2]
[420616149,1776347455503,-500.0,9.041e-05,2]
[420616150,1776347455513,-509.78,9.041e-05,2]
[420616151,1776347455522,-1867.39,9.041e-05,2]
[420616152,1776347455532,-500.0,9.041e-05,2]
[420616153,1776347455541,-500.0,9.041e-05,2]
[420616154,1776347455551,-508.10612789,9.041e-05,2]
[420616155,1776347455564,-500.0,9.041e-05,2]
[420616156,1776347455574,-500.0,9.041e-05,2]
[420616157,1776347455583,-518.28681554,9.041e-05,2]
[420616158,1776347455593,-500.0,9.041e-05,2]
[420616159,1776347455602,-592.3332779,9.041e-05,2]
[420616160,1776347455612,-500.0,9.041e-05,2]
[420616161,1776347455621,-500.0,9.041e-05,2]
[420616162,1776347455631,-500.0,9.041e-05,2]
[420616163,1776347455640,-500.0,9.041e-05,2]
[420616164,1776347455650,-500.0,9.041e-05,2]
[420616165,1776347455659,-500.0,9.041e-05,2]
[420616166,1776347455669,-656.19,9.041e-05,2]
[420616167,1776347455678,-517.67761365,9.041e-05,2]
[420616168,1776347455688,-500.0,9.041e-05,2]
[420616169,1776347455697,-1544.576064,9.041e-05,2]
[420616170,1776347455706,-321.29888672,9.041e-05,2]
[420616171,1776347455715,-837.05,9.041e-05,2]
[420616172,1776347455724,-1480.64,9.041e-05,2]
[420616173,1776347455734,-705.26,9.041e-05,2]
[420616174,1776347455743,-500.0,9.041e-05,2]
[420616175,1776347455753,-500.0,9.041e-05,2]
[420616176,1776347455762,-822.26,9.041e-05,2]
[420616177,1776347455772,-2699.92,9.041e-05,2]
[420616178,1776347455781,-500.0,9.041e-05,2]
[420616179,1776347455790,-500.0,9.041e-05,2]
[420616180,1776347455799,-615.88,9.041e-05,2]
[420616181,1776347455811,-918.3,9.041e-05,2]
[420616182,1776347455820,-2010.87,9.041e-05,2]
[420616183,1776347455830,-2645.38,9.041e-05,2]
[420616184,1776347455839,-500.0,9.041e-05,2]
[420616185,1776347455848,-500.0,9.041e-05,2]
[420616186,1776347455858,-500.0,9.041e-05,2]
[420616187,1776347455868,-500.0,9.041e-05,2]
[420616188,1776347455877,-500.0,9.041e-05,2]
[420616189,1776347455886,-500.0,9.041e-05,2]
[420616190,1776347455897,-1162.62,9.041e-05,2]
[420616191,1776347455906,-500.0,9.041e-05,2]
[420616192,1776347455916,-500.0,9.041e-05,2]
[420616193,1776347455926,-500.0,9.041e-05,2]
[420616194,1776347455936,-500.0,9.041e-05,2]
[420616195,1776347455946,-500.0,9.041e-05,2]
[420616196,1776347455955,-1196.0,9.041e-05,2]
[420616197,1776347455964,-1007.96,9.041e-05,2]
[420616198,1776347455973,-500.0,9.041e-05,2]
[420616199,1776347455983,-206.92927866,9.041e-05,2]
[420616200,1776347455992,-500.0,9.041e-05,2]
[420616201,1776347456002,-502.92232744,9.041e-05,2]
[420616202,1776347456136,-500.0,9.041e-05,2]
[420616203,1776347456146,-500.0,9.041e-05,2]
[420616204,1776347456155,-1505.24,9.041e-05,2]
[420616205,1776347456165,-2140.91,9.041e-05,2]
[420616206,1776347456174,-500.0,9.041e-05,2]
[420616207,1776347456183,-500.0,9.041e-05,2]
[420616208,1776347456193,-500.0,9.041e-05,2]
[420616209,1776347456202,-500.0,9.041e-05,2]
[420616210,1776347456211,-467.89196152,9.041e-05,2]
[420616211,1776347456220,-2489.33,9.041e-05,2]
[420616212,1776347456229,-500.0,9.041e-05,2]
[420616213,1776347456239,-3728.42,9.041e-05,2]
[420616214,1776347456247,-784.3,9.041e-05,2]
[420616215,1776347456257,-500.0,9.041e-05,2]
[420616216,1776347456266,-4366.97,9.041e-05,2]
[420616217,1776347456275,-1672.76,9.041e-05,2]
[420616218,1776347456285,-391.46899937,9.041e-05,2]
[420616219,1776347456295,-500.0,9.041e-05,2]
[420616220,1776347456304,-2208.62,9.041e-05,2]
[420616221,1776347456315,-500.0,9.041e-05,2]
[420616222,1776347456324,-2586.11,9.041e-05,2]
[420616223,1776347456333,-500.0,9.041e-05,2]
[420616224,1776347456342,-550.87,9.041e-05,2]
[420616225,1776347456352,-500.0,9.041e-05,2]
[420616226,1776347456361,-334.0218037,9.041e-05,2]
[420616227,1776347456371,-554.7901,9.041e-05,2]
[420616228,1776347456381,-1909.16,9.041e-05,2]
[420616229,1776347456390,-1990.16,9.041e-05,2]
[420616230,1776347456400,-178.56021044,9.041e-05,2]
[420616231,1776347456411,-1773.48,9.041e-05,2]
[420616232,1776347456421,-342.43557002,9.041e-05,2]
[420616233,1776347456431,-514.71353346,9.041e-05,2]
[420616234,1776347456441,-2744.3,9.041e-05,2]
[420616235,1776347456450,-1324.63,9.041e-05,2]
[420616236,1776347456459,-1629.3,9.041e-05,2]
[420616237,1776347456469,-6728.9,9.041e-05,2]
[420616238,1776347456479,-500.0,9.041e-05,2]
[420616239,1776347456488,-500.0,9.041e-05,2]
[420616240,1776347456498,-500.0,9.041e-05,2]
[420616241,1776347456507,-3011.81,9.041e-05,2]
[420616242,1776347456517,-6483.02,9.041e-05,2]
[420616243,1776347456526,-8143.34,9.041e-05,2]
[420616244,1776347456535,-500.0,9.041e-05,2]
[420616245,1776347456545,-1204.32,9.041e-05,2]
[420616246,1776347456554,-3004.44,9.041e-05,2]
[420616247,1776347456564,-1897.3,9.041e-05,2]
[420616248,1776347456573,-1433.85,9.041e-05,2]
[420616249,1776347456582,-5719.79,9.041e-05,2]
[420616250,1776347456591,-500.0,9.041e-05,2]
[420616251,1776347456600,-575.36068112,9.041e-05,2]
[420616252,1776347456609,-500.0,9.041e-05,2]
[420616253,1776347456619,-1953.06,9.041e-05,2]
[420616254,1776347456628,-500.0,9.041e-05,2]
[420616255,1776347456637,-1434.8,9.041e-05,2]
[420616256,1776347456647,-500.0,9.041e-05,2]
[420616257,1776347456656,-1718.57,9.041e-05,2]
[420616258,1776347456665,-500.0,9.041e-05,2]
[420616259,1776347456674,-500.0,9.041e-05,2]
[420616260,1776347456688,-500.0,9.041e-05,2]
[420616261,1776347456698,-500.0,9.041e-05,2]
[420616262,1776347456708,-2610.98,9.041e-05,2]
[420616263,1776347456717,-500.0,9.041e-05,2]
[420616264,1776347456727,-500.0,9.041e-05,2]
[420616265,1776347456736,-500.0,9.041e-05,2]
[420616266,1776347456746,-500.0,9.041e-05,2]
[420616267,1776347456755,-1095.12,9.041e-05,2]
[420616268,1776347456764,-4389.23,9.041e-05,2]
[420616269,1776347456774,-500.0,9.041e-05,2]
[420616270,1776347456784,-2304.72,9.041e-05,2]
[420616271,1776347456793,-565.01,9.041e-05,2]
[420616272,1776347456803,-500.0,9.041e-05,2]
[420616273,1776347456813,-500.0,9.041e-05,2]